Cogmind - Beta 12 @@@ ROGUE MODE // 2023.03.08 @ 15:53:01 Player: ArabianSandBoa Result: Destroyed by D-53 Grenadier with Mini Grenade Launcher Performance ------------- Evolutions (0) 0 Regions Visited (4) 800 Robots Destroyed (20) 100 Value Destroyed (417) 417 Prototype IDs (2) 40 Alien Tech Used (0) 0 Bonus (21) 21 TOTAL SCORE: 1378 Bonus ------- Follower Combat Kills 21 Cogmind --------- Core Integrity 0/250 Matter 257/300 Energy 250/250 System Corruption 1% Temperature Cool (0) Movement Rolling (140) Ox4 Location -9/Mines Parts ------- > --- POWER (1) -------- Ion Engine > --- PROPULSION (2) --- Wheel > --- UTILITY (2) ------ High-capacity Storage Unit Weapon Shielding > --- WEAPON (2) ------- Assault Rifle Assault Rifle > --- INVENTORY (20) --- Light Nuclear Core Fission Core Wheel Compact Wheel Improved Heat Sink High-capacity Storage Unit Sensor Array Terrain Scanner Transport Network Coupler Core Shielding Weapon Shielding Assault Rifle Light Cannon Hammer Hammer Mining Claw Peak State ------------ > --- POWER ------------ Light Nuclear Core > --- PROPULSION ------- Light Treads Light Treads > --- UTILITY ---------- Heat Sink High-capacity Storage Unit > --- WEAPON ----------- Light Assault Rifle Light Assault Rifle > --- INVENTORY -------- Ion Engine Wheel Wheel Wheel Wheel Large Storage Unit Large Storage Unit Terrain Scanner Small Laser Light Assault Rifle [Rating: 10] Favorites ----------- Power Light Nuclear Core Engine Ion Engine Power Core Light Nuclear Core Propulsion Light Treads Treads Light Treads Leg Aluminum Leg Wheel Wheel Utility Heat Sink Device Heat Sink Storage High-capacity Storage Unit Protection Weapon Shielding Weapon Light Assault Rifle Energy Gun Small Laser Ballistic Gun Light Assault Rifle Build | -11 -10 -10 -10 -9 ------- Run | Jun Mat Min Exi Min Slots Evolved . | . . . . . Power . | . . . . . Propulsion . | . . . . . Utility . | . . . . . Weapon . | . . . . . Parts Attached 18 | . 14 . 1 3 Power 2 | . 2 . . . Engine 1 | . 1 . . . Core 1 | . 1 . . . Reactor . | . . . . . Propulsion 5 | . 4 . 1 . Treads 2 | . 2 . . . Leg . | . . . . . Wheel 3 | . 2 . 1 . Hover . | . . . . . Flight . | . . . . . Utility 5 | . 4 . . 1 Device 2 | . 2 . . . Storage 2 | . 2 . . . Processor . | . . . . . Hackware . | . . . . . Protection 1 | . . . . 1 Artifact . | . . . . . Weapon 6 | . 4 . . 2 Energy Gun . | . . . . . Energy Cannon . | . . . . . Ballistic Gun 6 | . 4 . . 2 Ballistic Cannon . | . . . . . Launcher . | . . . . . Special Weapon . | . . . . . Impact Weapon . | . . . . . Slashing Weapon . | . . . . . Piercing Weapon . | . . . . . Special Melee Weapon . | . . . . . Unidentified Prototypes . | . . . . . Parts Lost 7 | . 5 . . 2 Power 1 | . 1 . . . Propulsion 3 | . 2 . . 1 Utility 2 | . 1 . . 1 Weapon 1 | . 1 . . . Highest Loss Streak 5 | . 5 . . 1 To Critical Strikes . | . . . . . Average Slot Usage (%) 93 | . 98 100 71 90 Engine 6 | . 3 14 14 14 Core 7 | . 10 . . . Treads 15 | . 21 . . . Wheel 11 | . 4 28 28 28 Device 12 | . 12 14 14 4 Storage 14 | . 14 14 14 14 Ballistic Gun 22 | . 27 28 . 18 Naked Turns . | . . . . . Heaviest Build 50 | 10 50 50 46 50 Greatest Support 40 | 20 40 20 20 20 Greatest Overweight (x) 4 | . 4 2 2 2 Average Overweight (x) 1 | . 1 2 2 2 Largest Inventory Capacity 20 | 8 20 20 20 20 Average Capacity 17 | 8 17 20 20 20 Most Carried 20 | 6 19 19 20 19 Average Carried 14 | 6 13 19 19 16 Final Capacity 20 | 8 20 20 20 20 Final Carried 20 | 6 19 19 20 16 Class Distribution -------------------- 100% | Mutant Dominant Class ---------------- Mutant | -10/Materials Mutant | -10/Mines Mutant | -10/Exiles Mutant | -9/Mines Resources | -11 -10 -10 -10 -9 ----------- Run | Jun Mat Min Exi Min Matter Collected 529 | 200 244 68 . 17 Remotely . | . . . . . Salvage Created 618 | . 597 . . 21 Parts 42 | . 39 . . 3 Haulers Intercepted 2 | . 2 . . . Recyclers Shooed . | . . . . . Parts Field Recycled . | . . . . . Retrieved Matter . | . . . . . Parts Self-Destructed . | . . . . . Prevented . | . . . . . Kills | -11 -10 -10 -10 -9 ------- Run | Jun Mat Min Exi Min Combat Hostiles Destroyed 13 | . 11 . . 2 Guns 13 | . 11 . . 2 Classes Destroyed 6 | . 6 . . . Worker 1 | . 1 . . . Hauler 2 | . 2 . . . Operator 1 | . 1 . . . Watcher 3 | . 3 . . . Swarmer 5 | . 3 . . 2 Grunt 8 | . 8 . . . Best Kill Streak 4 | . 4 . . 2 Combat Bots Only 3 | . 3 . . 2 Max Kills in Single Turn 1 | . 1 . . 1 Gunslinging . | . . . . . Exploded . | . . . . . Melee . | . . . . . Uniques/NPCs Destroyed . | . . . . . Combat | -11 -10 -10 -10 -9 -------- Run | Jun Mat Min Exi Min Damage Taken 1202 | . 834 32 . 336 Core 256 | . 163 . . 93 Absorbed by Shields . | . . . . . Redirected to Shielding 34 | . . . . 34 Core Remaining (%) 100 | 100 . . . . Volleys Fired 83 | . 74 4 . 5 Largest 2 | . 2 2 . 2 Hottest 40 | . 40 40 . 40 Shots Fired 165 | . 147 8 . 10 Gun 165 | . 147 8 . 10 Cannon . | . . . . . Launcher . | . . . . . Special . | . . . . . Kinetic 165 | . 147 8 . 10 Thermal . | . . . . . Explosive . | . . . . . Electromagnetic . | . . . . . Robot Hit Streak 8 | . 8 3 . 3 Robot Miss Streak 3 | . 3 3 . 2 Penetration Max . | . . . . . Secondary Targets 3 | . 3 . . . Max Gunslinging Chain 1 | . 1 . . . Shots Hit Robots 101 | . 92 3 . 6 Core Hits 44 | . 40 . . 4 Critical Kills . | . . . . . Critical Parts Destroyed 1 | . 1 . . . Critical Strikes 1 | . 1 . . . Destroy 1 | . 1 . . . Melee Attacks . | . . . . . Impact . | . . . . . Slashing . | . . . . . Piercing . | . . . . . Sneak Attacks . | . . . . . Combat Hostiles . | . . . . . Follow-up Attacks . | . . . . . Damage Inflicted 866 | . 752 41 . 73 Guns 866 | . 752 41 . 73 Cannons . | . . . . . Explosions . | . . . . . Melee . | . . . . . Ramming . | . . . . . Kinetic 866 | . 752 41 . 73 Thermal . | . . . . . Explosive . | . . . . . Electromagnetic . | . . . . . Impact . | . . . . . Slashing . | . . . . . Piercing . | . . . . . Highest Corruption 1 | . 1 1 1 1 Average Corruption 1 | . 1 1 1 1 Corruption Purged . | . . . . . Corruption Blocked . | . . . . . Effects 7 | . 6 1 . . Message Errors 3 | . 2 1 . . Matter Fused 2 | . 2 . . . Alerts 1 | . 1 . . . Weapon Failures 1 | . 1 . . . Overload Shots . | . . . . . Overflow Damage . | . . . . . Projectiles . | . . . . . Explosions . | . . . . . Melee . | . . . . . Knockbacks . | . . . . . Impact . | . . . . . Kinetic . | . . . . . Secondary . | . . . . . Self-Inflicted Damage . | . . . . . Shots . | . . . . . Rammed . | . . . . . Targets Rammed . | . . . . . Kicked . | . . . . . Crushed . | . . . . . Highest Temperature 27 | . 27 . . . Average Temperature 10 | . 10 . . . Received Heat Transfer 465 | . 465 . . . Siege Activations . | . . . . . Robots Corrupted . | . . . . . Combat Hostiles . | . . . . . Parts Fried . | . . . . . Impact Corruptions . | . . . . . Robots Melted . | . . . . . Combat Hostiles . | . . . . . Parts Melted . | . . . . . Heat Transferred . | . . . . . Parts Sabotaged . | . . . . . Parts Stolen . | . . . . . Parts Stripped . | . . . . . Power Chain Reactions . | . . . . . Missiles Intercepted . | . . . . . Alert | -11 -10 -10 -10 -9 ------- Run | Jun Mat Min Exi Min Peak Influence 238 | . 238 120 . 55 Initial 62 | . . 62 . . Average 101 | . 109 95 . 34 Maximum Alert Level 1 | . 1 . . . Low Security (%) 91 | 100 89 100 . 100 Level 1 8 | . 10 . . . Level 2 . | . . . . . Level 3 . | . . . . . Level 4 . | . . . . . Level 5 . | . . . . . High Security . | . . . . . Max Security . | . . . . . Squads Dispatched 5 | . 5 . . . Investigation 3 | . 3 . . . Extermination . | . . . . . Reinforcement 2 | . 2 . . . Assault . | . . . . . Garrison . | . . . . . Intercept . | . . . . . Searches Triggered . | . . . . . Construction Impeded . | . . . . . Haulers Reinforced . | . . . . . Active Scanning Responses . | . . . . . Cargo Convoy Interrupts . | . . . . . Stealth | -11 -10 -10 -10 -9 --------- Run | Jun Mat Min Exi Min Distress Signals 2 | . 2 . . . Communications Jammed . | . . . . . Distress Signals . | . . . . . Times Spotted 31 | . 21 3 . 7 Peak Tracking Total 4 | . 2 3 . 4 Tactical Retreats 2 | . 1 . . 1 Traps | -11 -10 -10 -10 -9 ------- Run | Jun Mat Min Exi Min Traps Triggered 2 | . 2 . . . Indirectly . | . . . . . Trap Hack Attempts . | . . . . . Triggered . | . . . . . Disarmed . | . . . . . Reprogrammed . | . . . . . Reused . | . . . . . Traps Extracted . | . . . . . Installed . | . . . . . Triggered . | . . . . . Exploded 2 | . . . . 2 Machines | -11 -10 -10 -10 -9 ---------- Run | Jun Mat Min Exi Min Machines Disabled . | . . . . . Max in Single Turn . | . . . . . Machines Repaired . | . . . . . Machines Sabotaged . | . . . . . Overloaded Fab Kills . | . . . . . Hacking | -11 -10 -10 -10 -9 --------- Run | Jun Mat Min Exi Min Machines Accessed 3 | . 3 . . . Terminals 3 | . 3 . . . Fabricators . | . . . . . Repair Stations . | . . . . . Recycling Units . | . . . . . Scanalyzers . | . . . . . Garrison Access . | . . . . . Total Hacks 10 | . 10 . . . Successful 2 | . 2 . . . Failed 8 | . 8 . . . Catastrophic . | . . . . . Database Lockouts . | . . . . . Manual . | . . . . . Terminals 10 | . 10 . . . Fabricators . | . . . . . Repair Stations . | . . . . . Recycling Units . | . . . . . Scanalyzers . | . . . . . Garrison Access . | . . . . . Terminal Hacks 2 | . 2 . . . Prototype ID Bank 1 | . 1 . . . Registered Components 1 | . 1 . . . Fabricator Hacks . | . . . . . Repair Station Hacks . | . . . . . Recycling Unit Hacks . | . . . . . Scanalyzer . | . . . . . Garrison Access Hacks . | . . . . . Unauthorized Hacks . | . . . . . Terminals . | . . . . . Fabricators . | . . . . . Repair Stations . | . . . . . Recycling Units . | . . . . . Scanalyzers . | . . . . . Garrison Access . | . . . . . Data Cores Recovered . | . . . . . Used . | . . . . . Hacking Detections 3 | . 3 . . . Full Trace Events 2 | . 2 . . . Feedback Events 1 | . 1 . . . Corruption 1 | . 1 . . . Feedback Blocked . | . . . . . Robot Schematics Acquired . | . . . . . Robots Built . | . . . . . Authchips . | . . . . . Time . | . . . . . Total Robot Build Rating . | . . . . . Part Schematics Acquired . | . . . . . Parts Built . | . . . . . Authchips . | . . . . . Time . | . . . . . Total Part Build Rating . | . . . . . Parts Repaired . | . . . . . Time . | . . . . . Parts Recycled . | . . . . . Recycled Matter . | . . . . . Retrieved Matter . | . . . . . Retrieved Components . | . . . . . Parts Scanalyzed . | . . . . . Part Schematics Acquired . | . . . . . Parts Damaged . | . . . . . Bothacking | -11 -10 -10 -10 -9 ------------ Run | Jun Mat Min Exi Min Used RIF Installer . | . . . . . Robots Hacked . | . . . . . Non-combat . | . . . . . Combat . | . . . . . Robot Hacks Applied . | . . . . . Relay Couplers Released . | . . . . . Fabnet Peak Effective % . | . . . . . Robots Rewired . | . . . . . Allies Hacked . | . . . . . Hacks Repelled . | . . . . . Allies | -11 -10 -10 -10 -9 -------- Run | Jun Mat Min Exi Min Total Allies 3 | . . 3 . . Largest Group 3 | . . 3 2 1 Highest-Rated Group 40 | . . 40 32 16 Highest-Rated Ally 16 | . . 16 16 16 Total Orders . | . . . . . Ally Attacks 11 | . . 9 . 2 Total Damage 90 | . . 73 . 17 Kills 3 | . . 3 . . Allies Corrupted . | . . . . . Allies Melted . | . . . . . Intel | -11 -10 -10 -10 -9 ------- Run | Jun Mat Min Exi Min Robot Analysis Total . | . . . . . Derelict Logs Recovered 3 | . . 1 . 2 Drone Launches . | . . . . . Drone Recoveries . | . . . . . Exploration | -11 -10 -10 -10 -9 ------------- Run | Jun Mat Min Exi Min Turns Passed 1472 | 33 1023 137 224 55 Spaces Moved 781 | 28 420 103 197 33 Core . | . . . . . Treads 276 | . 276 . . . Legs 60 | 28 32 . . . Wheels 445 | . 112 103 197 33 Hover . | . . . . . Flight . | . . . . . Fastest Speed 110 | 120 110 110 110 110 Average Speed 147 | 120 179 110 110 110 Slowest Speed 240 | 120 240 110 110 110 Overloaded Moves . | . . . . . Propulsion Burnouts . | . . . . . Robots Hopped . | . . . . . Cave-ins Triggered . | . . . . . Exploration Rate (%) 37 | 3 85 27 59 13 Regions Visited 4 Branch Regions 3 Pre-discovered Areas 2 | . . . . 2 Known Exits Taken 1 | . . . 1 . Unknown Exits Taken 3 | 1 1 1 . . Scrap Searched 2 | . . 2 . . Spaces Dug . | . . . . . Terrain Destroyed . | . . . . . Melee . | . . . . . Projectile . | . . . . . AOE . | . . . . . Terrain Rammed . | . . . . . Walls Destroyed . | . . . . . Machines Disabled . | . . . . . Actions | -11 -10 -10 -10 -9 --------- Run | Jun Mat Min Exi Min Total 963 | 27 568 118 206 44 Wait 42 | . 30 12 . . Move 777 | 27 419 102 196 33 Hop . | . . . . . Pick Up 26 | . 22 . 3 1 Fast Attach 1 | . 1 . . . Attach 8 | . 5 . . 3 Detach 2 | . . . 2 . Swap 9 | . 8 . 1 . Drop 15 | . 9 . 4 2 Fire 83 | . 74 4 . 5 Melee . | . . . . . Ram . | . . . . . Kick . | . . . . . Crush . | . . . . . Escape Stasis . | . . . . . Rewire . | . . . . . Trap . | . . . . . Miscellaneous . | . . . . . Route ------- -11/Junkyard -10/Materials (discovered 3 exits: [*Mat x2] / [*Min]) -10/Mines (discovered 2 exits: [*Mat] / [*Exi]) -10/Exiles (discovered 2 exits: *Min x2) -9/Mines History --------- Turn | Location | Event 1 | -11/Junkyard | Discovered new exit (range 3) 34 | -11/Junkyard | Entered Materials 311 | -10/Materials | Build established: Mutant 530 | -10/Materials | Discovered new exit (range 3) 869 | -10/Materials | Core integrity fell below 50% 915 | -10/Materials | Lost 5 parts (1p2n1u1w) 941 | -10/Materials | Discovered new exit (range 4) 1000 | -10/Materials | Discovered new exit (range 16) 1057 | -10/Materials | Entered Mines 1073 | -10/Mines | Assisted by bots powering up and referring to "LRC-V3" 1104 | -10/Mines | Discovered new exit (range 6) 1178 | -10/Mines | Deemed a non-threat by the Exiles lab entrance 1178 | -10/Mines | Discovered new exit (range 5) 1194 | -10/Mines | Entered Exiles 1194 | -10/Exiles | Found Exiles lab abandoned 1194 | -10/Exiles | Accompanied by 2 allies 1195 | -10/Exiles | Identified exit to Mines 1418 | -10/Exiles | Entered Mines 1418 | -9/Mines | Accompanied by 1 ally 1419 | -9/Mines | Assembled infested the area 1428 | -9/Mines | Core integrity fell below 20% 1462 | -9/Mines | Learned location of Storage (-9) 1463 | -9/Mines | Learned location of Zion (-6) 1473 | -9/Mines | Destroyed by D-53 Grenadier with Mini Grenade Launcher Last Messages --------------- squad. 01422_ Trooper 1b destroyed. 01426_ Rigged Fission Core explodes. 01426_ S-10 Pest destroyed. 01427_ Dropped Rigged Rnf. Deuterium Engine. 01430_ Heat Sink destroyed. 01433_ S-10 Pest destroyed. 01435_ Rigged Rnf. Deuterium Engine explodes. 01442_ Acquired 7 matter. 01444_ S-10 Pest destroyed. 01447_ Acquired Imp. Heat Sink. 01448_ Acquired 10 matter. 01462_ Acquired derelict log, extracted data. World map updated: -9/Storage. 01463_ Acquired derelict log, extracted data. World map updated: -6/Zion. 01468_ C-30 ARC bursts open, deploying its payload. 01468_ D-53 Grenadier unfolds itself. 01468_ K-01 Serf collects debris. 01470_ Wheel destroyed. Map ----- +----------------------------------------------------+ | | | | | | | | | | | | | | | | | | | | | | | | | | | | | | | ??????????????????????????????????????????????? | | ??????????????????????????????????????????????? | | ??????????????????????????????????????????????? | | ??????????????????????????????########????????? | | ??????????????????###????##### ##???????? | | ????????????????### ##### ## ?????? | | ??????????? #### # # ?????? | | ??????????? ?????? | | ???????????? t k ?????? | | ???????????????# u ?????? | | ????????????????# @ #?? ???????? | | ????????????????#% d ##?? ???????? | | ???????????????# kd #???# #???????? | | ??????????????# # ##???# #???????? | | ?????????????# ?#### # ##????# #???????? | | ???????????? ??????#### ####### #???????? | | ???????????? ??????????# #???????? | | ???????????? ????????????########## #???????? | | ????????????????????????????????##### ##??????? | | ????????????????????????????????#" #??????? | | ????????????????????????????????# % [ #??????? | | ????????????????????????????????# =[*#??????? | | ????????????????????????????????#" [[%##??????? | | ????????????????????????????????#"""=%#???????? | | ????????????????????????????????#### #???????? | | ???????????????????????????????????# #???????? | | ???????????????????????????????????# #???????? | | ???????????????????????????????????# #???????? | | ???????????????????????????????????" #???????? | | ?????????????????????????????????? #???????? | | ?????????????????????????????????##""##???????? | | ???????????????????????????????????# #????????? | | ???????????????????????????????????###????????? | | ??????????????????????????????????????????????? | | ??????????????????????????????????????????????? | +----------------------------------------------------+ Best States ------------- Heat Dissipation 35 Energy Generation 14 Energy Capacity 250 Matter Stores 300 Matter Capacity 300 Sight Range 16 Terrain Scan Density 10 Weapon Shielding 33 Evasion (%) 55 Recoil Reduction 2 Item Schematics ----------------- None Robot Schematics ------------------ None Fabricated ------------ Nothing Alien Tech Used ----------------- None Achievements -------------- None Challenges ------------ None Game ------ Seed GrenadeLightpackKit Manual? 0 Play Time 00:09:45 Cumulative 428.5 hours Start 2023.03.08 @ 15:44:06 End 2023.03.08 @ 15:53:01 Sessions 1 Manual Loads 0 Difficulty Rogue Special Mode None Game No. 485 Rogue 485 Adventurer 0 Explorer 0 Win Type - Total 0 Types 0/0/0/0/0/0/0/0/0 Lore% 59 Gallery% 78 Achievement% 64 Wizard Run 0 Options --------- ASCII 0 Keyboard 0 Movement Mouse Keybinds 0 Fullscreen 2 Font 24/Smallcaps Map View 76x50 Tactical HUD 1 Map Filters NONE Filters NONE Steam 1 RUN: d1a1d91b-9666-46f3-a554-35a51bbc47b8